[Event "FIDE Grand Swiss 2023"]
[Site "Villa Marina, Douglas, Isle of Man, Isle Of Man"]
[Date "2023.11.05"]
[Round "11.22"]
[White "Petrosyan, Manuel"]
[Black "Volokitin, Andrei"]
[Result "1/2-1/2"]
[TimeControl "40/90 + 30 + 30s/move"]
[WhiteFideId "13300857"]
[BlackFideId "14107090"]
[WhiteElo "2604"]
[BlackElo "2664"]

1. e4 {[%clk 01:38:48]} {[%emt 00:02:11]} c5 {[%clk 01:40:55]} {[%emt
00:00:05]} 2. Nf3 {[%clk 01:38:48]} {[%emt 00:00:30]} d6 {[%clk 01:41:20]}
{[%emt 00:00:05]} 3. d4 {[%clk 01:39:03]} {[%emt 00:00:14]} cxd4 {[%clk
01:41:45]} {[%emt 00:00:06]} 4. Nxd4 {[%clk 01:39:29]} {[%emt 00:00:04]} Nf6
{[%clk 01:42:11]} {[%emt 00:00:04]} 5. Nc3 {[%clk 01:39:50]} {[%emt 00:00:08]}
a6 {[%clk 01:42:37]} {[%emt 00:00:04]} 6. Bd3 {[%clk 01:39:57]} {[%emt
00:00:25]} g6 {[%clk 01:42:58]} {[%emt 00:00:08]} 7. f3 {[%clk 01:39:59]}
{[%emt 00:00:28]} Qb6 {[%clk 01:43:17]} {[%emt 00:00:11]} 8. a3 {[%clk
01:39:52]} {[%emt 00:00:37]} Nc6 {[%clk 01:43:30]} {[%emt 00:00:16]} 9. Be3
{[%clk 01:40:14]} {[%emt 00:00:08]} e5 {[%clk 01:43:53]} {[%emt 00:00:08]} 10.
Nf5 {[%clk 01:40:36]} {[%emt 00:00:08]} Qd8 {[%clk 01:44:20]} {[%emt 00:00:04]}
11. Nh6 {[%clk 01:40:48]} {[%emt 00:00:18]} d5 {[%clk 01:32:27]} {[%emt
00:12:22]} 12. exd5 {[%clk 01:40:05]} {[%emt 00:01:13]} Nxd5 {[%clk 01:32:53]}
{[%emt 00:00:04]} 13. Nxd5 {[%clk 01:40:26]} {[%emt 00:00:09]} Qxd5 {[%clk
01:33:17]} {[%emt 00:00:07]} 14. Be4 {[%clk 01:40:47]} {[%emt 00:00:08]} Qxd1+
{[%clk 01:32:04]} {[%emt 00:01:42]} 15. Rxd1 {[%clk 01:39:12]} {[%emt
00:02:06]} Be6 {[%clk 01:29:42]} {[%emt 00:02:52]} 16. g4 {[%clk 01:36:05]}
{[%emt 00:03:36]} Rc8 {[%clk 01:20:58]} {[%emt 00:09:14]} 17. h4 {[%clk
01:36:30]} {[%emt 00:00:06]} f5 {[%clk 01:11:07]} {[%emt 00:10:20]} 18. gxf5
{[%clk 01:36:17]} {[%emt 00:00:44]} Bxh6 {[%clk 01:11:33]} {[%emt 00:00:05]} 19.
Bxh6 {[%clk 01:36:28]} {[%emt 00:00:19]} gxf5 {[%clk 01:11:58]} {[%emt
00:00:05]} 20. Bd3 {[%clk 01:34:46]} {[%emt 00:02:12]} Nd4 {[%clk 01:00:33]}
{[%emt 00:11:54]} 21. Kf2 {[%clk 01:33:20]} {[%emt 00:01:55]} Nxf3 {[%clk
01:00:58]} {[%emt 00:00:05]} 22. Kxf3 {[%clk 01:30:55]} {[%emt 00:02:56]} e4+
{[%clk 01:01:22]} {[%emt 00:00:06]} 23. Bxe4 {[%clk 01:20:56]} {[%emt
00:10:29]} fxe4+ {[%clk 01:01:49]} {[%emt 00:00:03]} 24. Kxe4 {[%clk 01:21:02]}
{[%emt 00:00:23]} Rxc2 {[%clk 01:02:09]} {[%emt 00:00:09]} 25. Rc1 {[%clk
01:04:34]} {[%emt 00:16:58]} Rxc1 {[%clk 00:58:01]} {[%emt 00:04:39]} 26. Rxc1
{[%clk 01:04:59]} Kd7 {[%clk 00:58:10]} {[%emt 00:00:26]} 27. Bf4 {[%clk
00:48:23]} {[%emt 00:17:06]} Rc8 {[%clk 00:57:45]} {[%emt 00:00:55]} 28. Rxc8
{[%emt 00:04:30]} Kxc8 {[%clk 00:58:13]} {[%emt 00:00:01]} 29. h5 {[%clk
00:44:43]} {[%emt 00:00:11]} Bf7 {[%clk 00:58:36]} {[%emt 00:00:07]} 30. h6
{[%clk 00:45:08]} {[%emt 00:00:05]} Kd7 {[%clk 00:59:01]} {[%emt 00:00:05]} 31.
Ke5 {[%clk 00:45:32]} {[%emt 00:00:06]} Kc6 {[%clk 00:59:25]} {[%emt 00:00:05]}
32. Kd4 {[%clk 00:45:57]} 1/2-1/2

[Event "FIDE Grand Swiss 2023"]
[Site "Villa Marina, Douglas, Isle of Man, Isle Of Man"]
[Date "2023.11.05"]
[Round "11.23"]
[White "Kuybokarov, Temur"]
[Black "Bartel, Mateusz"]
[Result "1/2-1/2"]
[TimeControl "40/90 + 30 + 30s/move"]
[WhiteFideId "14203049"]
[BlackFideId "1112635"]
[WhiteElo "2584"]
[BlackElo "2651"]

1. c4 {[%clk 01:40:54]} {[%emt 00:00:04]} e6 {[%clk 01:40:34]} {[%emt
00:00:26]} 2. Nc3 {[%clk 01:41:08]} {[%emt 00:00:17]} d5 {[%clk 01:40:49]}
{[%emt 00:00:14]} 3. d4 {[%clk 01:41:26]} {[%emt 00:00:13]} Nf6 {[%clk
01:41:12]} {[%emt 00:00:06]} 4. Nf3 {[%clk 01:41:19]} {[%emt 00:00:37]} Nbd7
{[%clk 01:41:33]} {[%emt 00:00:08]} 5. Bf4 {[%clk 01:39:49]} {[%emt 00:02:01]}
Bb4 {[%clk 01:41:55]} {[%emt 00:00:08]} 6. cxd5 {[%clk 01:36:52]} {[%emt
00:03:28]} Nxd5 {[%clk 01:41:03]} {[%emt 00:01:21]} 7. Bd2 {[%clk 01:36:36]}
{[%emt 00:00:46]} N5f6 {[%clk 01:40:02]} {[%emt 00:01:31]} 8. e3 {[%clk
01:23:47]} {[%emt 00:13:19]} O-O {[%clk 01:38:46]} {[%emt 00:01:47]} 9. Bd3
{[%clk 01:21:04]} {[%emt 00:03:14]} b6 {[%clk 01:11:26]} {[%emt 00:27:48]} 10.
a3 {[%clk 01:05:49]} {[%emt 00:15:46]} Bxc3 {[%clk 01:11:27]} {[%emt 00:00:29]}
11. Bxc3 {[%clk 01:05:01]} {[%emt 00:01:17]} Bb7 {[%clk 01:11:54]} {[%emt
00:00:03]} 12. O-O {[%clk 01:02:20]} {[%emt 00:03:12]} Ne4 {[%clk 01:10:16]}
{[%emt 00:02:07]} 13. Bb4 {[%clk 00:51:50]} {[%emt 00:11:01]} c5 {[%clk
01:08:53]} {[%emt 00:01:52]} 14. dxc5 {[%clk 00:51:28]} {[%emt 00:00:53]} bxc5
{[%clk 01:08:17]} {[%emt 00:01:06]} 15. Bxe4 {[%clk 00:45:15]} {[%emt
00:06:43]} Bxe4 {[%clk 01:08:19]} {[%emt 00:00:27]} 16. Bc3 {[%clk 00:45:35]}
{[%emt 00:00:10]} Nb6 {[%clk 01:08:16]} {[%emt 00:00:33]} 17. Rc1 {[%clk
00:41:34]} {[%emt 00:04:32]} f6 {[%clk 00:53:30]} {[%emt 00:15:15]} 18. Ba5
{[%clk 00:33:44]} {[%emt 00:08:21]} Rc8 {[%clk 00:52:53]} {[%emt 00:01:07]} 19.
Qxd8 {[%clk 00:24:19]} {[%emt 00:09:55]} Rfxd8 {[%clk 00:52:52]} {[%emt
00:00:31]} 20. Nd2 {[%emt 00:02:31]} Bd3 {[%clk 00:52:03]} 21. Rfd1 {[%clk
00:23:31]} {[%emt 00:00:36]} c4 {[%clk 00:35:29]} {[%emt 00:17:04]} 22. b3
{[%clk 00:20:02]} {[%emt 00:04:00]} Rd5 {[%clk 00:35:26]} {[%emt 00:00:33]} 23.
Bxb6 {[%clk 00:18:20]} {[%emt 00:02:12]} axb6 {[%clk 00:27:08]} {[%emt
00:08:47]} 24. bxc4 {[%clk 00:14:13]} {[%emt 00:04:37]} Bxc4 {[%clk 00:27:34]}
{[%emt 00:00:04]} 25. Nxc4 {[%clk 00:13:57]} {[%emt 00:00:46]} Rxc4 {[%clk
00:27:57]} {[%emt 00:00:08]} 26. Kf1 {[%clk 00:13:38]} {[%emt 00:00:48]} Rxd1+
{[%clk 00:26:58]} {[%emt 00:01:29]} 27. Rxd1 {[%clk 00:14:03]} {[%emt
00:00:06]} Rc3 {[%clk 00:27:23]} {[%emt 00:00:04]} 28. Rb1 {[%clk 00:14:03]}
{[%emt 00:00:31]} Rxa3 {[%clk 00:27:47]} {[%emt 00:00:06]} 29. Rxb6 {[%clk
00:14:29]} {[%emt 00:00:04]} Kf7 {[%clk 00:28:10]} {[%emt 00:00:07]} 30. g4
{[%clk 00:14:52]} {[%emt 00:00:07]} e5 {[%clk 00:28:28]} {[%emt 00:00:12]} 31.
Rb7+ {[%clk 00:15:14]} {[%emt 00:00:08]} 1/2-1/2

[Event "FIDE Grand Swiss 2023"]
[Site "Villa Marina, Douglas, Isle of Man, Isle Of Man"]
[Date "2023.11.05"]
[Round "11.24"]
[White "Rapport, Richard"]
[Black "Aryan, Chopra"]
[Result "1-0"]
[TimeControl "40/90 + 30 + 30s/move"]
[WhiteFideId "738590"]
[BlackFideId "5084423"]
[WhiteElo "2752"]
[BlackElo "2634"]

1. Nf3 {[%clk 01:40:37]} {[%emt 00:00:22]} Nf6 {[%clk 01:40:54]} {[%emt
00:00:07]} 2. g3 {[%clk 01:40:55]} {[%emt 00:00:11]} c5 {[%clk 01:41:11]}
{[%emt 00:00:14]} 3. Bg2 {[%clk 01:41:00]} {[%emt 00:00:25]} Nc6 {[%clk
01:41:35]} {[%emt 00:00:06]} 4. O-O {[%clk 01:40:55]} {[%emt 00:00:33]} e5
{[%clk 01:41:57]} {[%emt 00:00:09]} 5. d3 {[%clk 01:41:18]} {[%emt 00:00:08]}
d5 {[%clk 01:42:04]} {[%emt 00:00:23]} 6. e4 {[%clk 01:41:38]} {[%emt
00:00:10]} d4 {[%clk 01:41:33]} {[%emt 00:01:01]} 7. a4 {[%clk 01:41:53]}
{[%emt 00:00:15]} Bg4 {[%clk 01:41:27]} {[%emt 00:00:35]} 8. Na3 {[%clk
01:35:40]} {[%emt 00:06:42]} h6 {[%clk 01:33:27]} {[%emt 00:08:31]} 9. Qe1
{[%clk 01:31:37]} {[%emt 00:04:33]} g5 {[%clk 01:27:51]} {[%emt 00:06:07]} 10.
Nd2 {[%clk 01:28:33]} {[%emt 00:03:32]} Rg8 {[%clk 01:25:38]} {[%emt 00:02:45]}
11. Ndc4 {[%clk 01:25:20]} {[%emt 00:03:43]} Qd7 {[%clk 01:13:28]} {[%emt
00:12:39]} 12. c3 {[%clk 01:14:35]} {[%emt 00:11:15]} h5 {[%clk 00:53:56]}
{[%emt 00:20:03]} 13. cxd4 {[%clk 01:10:10]} {[%emt 00:04:55]} cxd4 {[%clk
00:54:16]} {[%emt 00:00:10]} 14. Bd2 {[%emt 00:03:37]} Nh7 {[%clk 00:51:28]} 15.
b4 {[%clk 01:08:01]} {[%emt 00:02:50]} f6 {[%clk 00:51:31]} {[%emt 00:00:26]}
16. Nc2 {[%clk 00:54:06]} {[%emt 00:14:24]} Ne7 {[%clk 00:42:53]} {[%emt
00:09:09]} 17. b5 {[%clk 00:51:31]} {[%emt 00:03:06]} h4 {[%clk 00:41:49]}
{[%emt 00:01:34]} 18. Nb4 {[%clk 00:50:05]} {[%emt 00:01:55]} h3 {[%clk
00:32:22]} {[%emt 00:09:58]} 19. Bh1 {[%clk 00:50:20]} {[%emt 00:00:14]} Ng6
{[%clk 00:32:33]} {[%emt 00:00:19]} 20. Nd5 {[%clk 00:48:00]} {[%emt 00:02:50]}
Kf7 {[%clk 00:29:06]} {[%emt 00:03:58]} 21. Qb1 {[%clk 00:42:48]} {[%emt
00:05:41]} Be7 {[%clk 00:22:01]} {[%emt 00:07:36]} 22. Rc1 {[%clk 00:38:48]}
{[%emt 00:04:29]} Rac8 {[%clk 00:20:13]} {[%emt 00:02:18]} 23. Qb3 {[%clk
00:33:31]} {[%emt 00:05:47]} Be6 {[%clk 00:19:23]} {[%emt 00:01:21]} 24. b6
{[%clk 00:32:30]} {[%emt 00:01:30]} a6 {[%clk 00:17:00]} {[%emt 00:02:53]} 25.
Nc7 {[%clk 00:32:30]} {[%emt 00:00:30]} Ngf8 {[%clk 00:08:15]} {[%emt
00:09:15]} 26. Bf3 {[%clk 00:31:12]} {[%emt 00:01:48]} g4 {[%clk 00:08:41]}
{[%emt 00:00:04]} 27. Be2 {[%clk 00:30:36]} {[%emt 00:01:06]} Bxc4 {[%clk
00:04:52]} {[%emt 00:04:20]} 28. Qxc4+ {[%clk 00:26:41]} {[%emt 00:04:24]} Ne6
{[%clk 00:04:02]} {[%emt 00:01:20]} 29. Qxe6+ {[%clk 00:25:54]} {[%emt
00:01:17]} Qxe6 {[%clk 00:04:28]} {[%emt 00:00:05]} 30. Nxe6 {[%clk 00:26:20]}
{[%emt 00:00:03]} Rxc1+ {[%clk 00:04:52]} {[%emt 00:00:06]} 31. Rxc1 {[%clk
00:26:46]} {[%emt 00:00:04]} Kxe6 {[%clk 00:05:18]} {[%emt 00:00:04]} 32. Bd1
{[%clk 00:27:10]} {[%emt 00:00:06]} 1-0

[Event "FIDE Grand Swiss 2023"]
[Site "Villa Marina, Douglas, Isle of Man, Isle Of Man"]
[Date "2023.11.05"]
[Round "11.25"]
[White "Shankland, Sam"]
[Black "Murzin, Volodar"]
[Result "1/2-1/2"]
[TimeControl "40/90 + 30 + 30s/move"]
[WhiteFideId "2004887"]
[BlackFideId "44155573"]
[WhiteElo "2698"]
[BlackElo "2633"]

1. Nf3 {[%clk 01:40:51]} {[%emt 00:00:08]} Nf6 {[%clk 01:40:44]} {[%emt
00:00:16]} 2. c4 {[%clk 01:41:03]} {[%emt 00:00:18]} e6 {[%clk 01:40:54]}
{[%emt 00:00:21]} 3. b3 {[%clk 01:40:59]} {[%emt 00:00:34]} d5 {[%clk
01:40:08]} {[%emt 00:01:16]} 4. Bb2 {[%clk 01:41:22]} {[%emt 00:00:07]} Be7
{[%clk 01:40:25]} {[%emt 00:00:12]} 5. e3 {[%clk 01:41:24]} {[%emt 00:00:28]}
O-O {[%clk 01:38:05]} {[%emt 00:02:51]} 6. Nc3 {[%clk 01:41:47]} {[%emt
00:00:07]} c5 {[%clk 01:36:14]} {[%emt 00:02:21]} 7. cxd5 {[%clk 01:42:09]}
{[%emt 00:00:07]} exd5 {[%clk 01:36:38]} {[%emt 00:00:07]} 8. Rc1 {[%clk
01:42:32]} {[%emt 00:00:06]} Nc6 {[%clk 01:32:31]} {[%emt 00:04:37]} 9. Na4
{[%clk 01:42:34]} {[%emt 00:00:28]} b6 {[%clk 01:29:02]} {[%emt 00:04:00]} 10.
d4 {[%clk 01:38:47]} {[%emt 00:04:17]} cxd4 {[%clk 01:19:36]} {[%emt 00:09:56]}
11. Nxd4 {[%clk 01:31:36]} {[%emt 00:07:41]} Bb4+ {[%clk 01:17:51]} {[%emt
00:02:14]} 12. Bc3 {[%clk 01:31:13]} {[%emt 00:00:53]} Bxc3+ {[%clk 01:17:21]}
{[%emt 00:01:00]} 13. Nxc3 {[%clk 01:31:25]} {[%emt 00:00:17]} Bb7 {[%clk
00:57:47]} {[%emt 00:20:04]} 14. Be2 {[%clk 01:26:11]} {[%emt 00:05:43]} Nxd4
{[%clk 00:53:37]} {[%emt 00:04:42]} 15. Qxd4 {[%clk 01:26:34]} {[%emt
00:00:07]} Qe7 {[%clk 00:53:51]} {[%emt 00:00:15]} 16. O-O {[%clk 01:25:27]}
{[%emt 00:01:36]} Rfc8 {[%clk 00:53:53]} {[%emt 00:00:29]} 17. Rc2 {[%clk
01:04:44]} {[%emt 00:21:13]} Qc5 {[%clk 00:37:41]} {[%emt 00:16:42]} 18. Rfc1
{[%clk 00:59:26]} {[%emt 00:05:47]} Qxd4 {[%clk 00:36:16]} {[%emt 00:01:56]} 19.
exd4 {[%clk 00:58:51]} {[%emt 00:01:05]} Kf8 {[%clk 00:31:07]} {[%emt
00:05:39]} 20. Kf1 {[%clk 00:48:29]} {[%emt 00:10:52]} Rc7 {[%clk 00:27:47]}
{[%emt 00:03:50]} 21. Nb5 {[%clk 00:46:02]} {[%emt 00:02:56]} Rxc2 {[%clk
00:27:53]} {[%emt 00:00:24]} 22. Rxc2 {[%clk 00:46:29]} {[%emt 00:00:03]} Ne8
{[%clk 00:28:14]} {[%emt 00:00:09]} 23. Bd3 {[%clk 00:28:37]} {[%emt 00:18:23]}
Ba6 {[%clk 00:23:47]} {[%emt 00:04:56]} 24. Ke2 {[%clk 00:27:38]} {[%emt
00:01:30]} Bxb5 {[%clk 00:22:05]} {[%emt 00:02:12]} 25. Bxb5 {[%emt 00:00:11]}
Nd6 {[%clk 00:21:23]} {[%emt 00:01:02]} 26. Bd7 {[%clk 00:27:08]} {[%emt
00:01:28]} Ne8 {[%clk 00:12:26]} {[%emt 00:09:26]} 27. Bxe8 {[%clk 00:23:35]}
{[%emt 00:04:05]} Rxe8+ {[%clk 00:12:47]} {[%emt 00:00:09]} 28. Kd3 {[%clk
00:24:01]} {[%emt 00:00:04]} f6 {[%clk 00:06:52]} {[%emt 00:06:24]} 29. Rc6
{[%clk 00:21:51]} {[%emt 00:02:39]} Re1 {[%clk 00:06:47]} {[%emt 00:00:36]} 30.
h4 {[%clk 00:20:08]} {[%emt 00:02:13]} Rd1+ {[%clk 00:05:06]} {[%emt 00:02:11]}
31. Ke2 {[%clk 00:18:53]} {[%emt 00:01:46]} Rxd4 {[%clk 00:05:31]} {[%emt
00:00:05]} 32. Rc8+ {[%clk 00:19:20]} {[%emt 00:00:03]} Ke7 {[%clk 00:04:01]}
{[%emt 00:01:59]} 33. Rc7+ {[%clk 00:19:45]} {[%emt 00:00:05]} Kd6 {[%clk
00:04:15]} {[%emt 00:00:16]} 34. Rxa7 {[%clk 00:18:37]} {[%emt 00:01:38]} Rg4
{[%clk 00:03:07]} {[%emt 00:01:38]} 35. g3 {[%clk 00:18:45]} {[%emt 00:00:22]}
h5 {[%clk 00:03:24]} {[%emt 00:00:13]} 36. Kd3 {[%clk 00:17:56]} {[%emt
00:01:19]} 1/2-1/2

[Event "FIDE Grand Swiss 2023"]
[Site "Villa Marina, Douglas, Isle of Man, Isle Of Man"]
[Date "2023.11.05"]
[Round "11.26"]
[White "Ponomariov, Ruslan"]
[Black "Navara, David"]
[Result "1/2-1/2"]
[TimeControl "40/90 + 30 + 30s/move"]
[WhiteFideId "14103320"]
[BlackFideId "309095"]
[WhiteElo "2641"]
[BlackElo "2689"]

1. Nf3 {[%clk 01:40:56]} {[%emt 00:00:03]} d5 {[%clk 01:40:25]} {[%emt
00:00:36]} 2. g3 {[%clk 01:41:08]} {[%emt 00:00:18]} g6 {[%clk 01:40:34]}
{[%emt 00:00:21]} 3. Bg2 {[%clk 01:40:38]} {[%emt 00:00:59]} Bg7 {[%clk
01:40:55]} {[%emt 00:00:10]} 4. d4 {[%clk 01:40:43]} {[%emt 00:00:25]} Nf6
{[%clk 01:41:20]} {[%emt 00:00:05]} 5. O-O {[%clk 01:38:57]} {[%emt 00:02:15]}
O-O {[%clk 01:41:33]} {[%emt 00:00:17]} 6. c3 {[%clk 01:36:30]} {[%emt
00:02:57]} Nbd7 {[%clk 01:39:01]} {[%emt 00:03:04]} 7. a4 {[%clk 01:34:41]}
{[%emt 00:02:18]} b6 {[%clk 01:34:01]} {[%emt 00:05:31]} 8. a5 {[%clk
01:31:18]} {[%emt 00:03:53]} Ba6 {[%clk 01:30:53]} {[%emt 00:03:37]} 9. Re1
{[%clk 01:26:54]} {[%emt 00:04:54]} c5 {[%clk 01:26:10]} {[%emt 00:05:13]} 10.
Bf4 {[%clk 01:25:09]} {[%emt 00:02:14]} Nh5 {[%clk 01:22:18]} {[%emt 00:04:22]}
11. Be3 {[%clk 01:23:02]} {[%emt 00:02:38]} e6 {[%clk 01:22:14]} {[%emt
00:00:34]} 12. Qc1 {[%clk 01:19:58]} {[%emt 00:03:33]} Qc7 {[%clk 01:19:07]}
{[%emt 00:03:38]} 13. Bh6 {[%clk 01:18:02]} {[%emt 00:02:26]} bxa5 {[%clk
01:13:08]} {[%emt 00:06:29]} 14. Bxg7 {[%clk 01:17:45]} {[%emt 00:00:47]} Kxg7
{[%clk 01:11:56]} {[%emt 00:01:42]} 15. Nbd2 {[%clk 01:17:51]} {[%emt
00:00:23]} Rab8 {[%clk 01:05:30]} {[%emt 00:06:57]} 16. Ra2 {[%clk 01:05:47]}
{[%emt 00:12:34]} cxd4 {[%clk 00:53:38]} {[%emt 00:12:22]} 17. Nxd4 {[%clk
01:05:09]} {[%emt 00:01:07]} e5 {[%clk 00:53:12]} {[%emt 00:00:57]} 18. N4b3
{[%clk 00:52:16]} {[%emt 00:13:22]} Bc4 {[%clk 00:48:52]} {[%emt 00:04:51]} 19.
Ra3 {[%clk 00:49:57]} {[%emt 00:02:49]} a4 {[%clk 00:42:14]} {[%emt 00:07:08]}
20. Nxc4 {[%clk 00:48:03]} {[%emt 00:02:24]} Qxc4 {[%clk 00:39:00]} {[%emt
00:03:45]} 21. Nd2 {[%clk 00:44:45]} {[%emt 00:03:47]} Qb5 {[%clk 00:38:29]}
{[%emt 00:01:00]} 22. c4 {[%clk 00:40:06]} {[%emt 00:05:10]} dxc4 {[%clk
00:38:03]} {[%emt 00:00:56]} 23. Nxc4 {[%clk 00:40:25]} {[%emt 00:00:11]} Rfc8
{[%clk 00:35:51]} {[%emt 00:02:42]} 24. Rc3 {[%clk 00:40:18]} {[%emt 00:00:36]}
Nhf6 {[%clk 00:35:40]} {[%emt 00:00:41]} 25. Qc2 {[%clk 00:37:25]} {[%emt
00:03:23]} Nd5 {[%clk 00:24:35]} {[%emt 00:11:35]} 26. Bxd5 {[%clk 00:34:23]}
{[%emt 00:03:32]} Qxd5 {[%clk 00:24:58]} {[%emt 00:00:07]} 27. Qxa4 {[%clk
00:32:29]} {[%emt 00:02:24]} Rxb2 {[%clk 00:22:46]} {[%emt 00:02:42]} 28. Rd1
{[%clk 00:25:03]} {[%emt 00:07:55]} Nc5 {[%clk 00:21:40]} {[%emt 00:01:36]} 29.
Nxb2 {[%clk 00:24:00]} {[%emt 00:01:34]} Nxa4 {[%clk 00:21:58]} {[%emt
00:00:12]} 30. Rxd5 {[%clk 00:24:27]} {[%emt 00:00:03]} Nxc3 {[%clk 00:22:14]}
{[%emt 00:00:13]} 31. Rxe5 {[%clk 00:24:54]} {[%emt 00:00:03]} Kf6 {[%clk
00:20:08]} {[%emt 00:02:36]} 32. Ra5 {[%clk 00:24:19]} {[%emt 00:01:05]} Nxe2+
{[%clk 00:19:35]} {[%emt 00:01:03]} 33. Kf1 {[%clk 00:24:43]} {[%emt 00:00:07]}
Rc1+ {[%clk 00:18:30]} {[%emt 00:01:34]} 34. Kxe2 {[%clk 00:25:02]} {[%emt
00:00:12]} Rc2+ {[%clk 00:18:57]} {[%emt 00:00:03]} 35. Kf3 {[%clk 00:25:28]}
{[%emt 00:00:05]} Rxb2 {[%clk 00:19:22]} {[%emt 00:00:04]} 36. Rxa7 {[%clk
00:25:54]} {[%emt 00:00:04]} 1/2-1/2

[Event "FIDE Grand Swiss 2023"]
[Site "Villa Marina, Douglas, Isle of Man, Isle Of Man"]
[Date "2023.11.05"]
[Round "11.27"]
[White "Gledura, Benjamin"]
[Black "Sargissian, Gabriel"]
[Result "1/2-1/2"]
[TimeControl "40/90 + 30 + 30s/move"]
[WhiteFideId "712779"]
[BlackFideId "13300881"]
[WhiteElo "2633"]
[BlackElo "2686"]

1. e4 {[%clk 01:40:53]} {[%emt 00:00:06]} e5 {[%clk 01:40:50]} {[%emt
00:00:11]} 2. Nf3 {[%clk 01:41:15]} {[%emt 00:00:07]} Nc6 {[%clk 01:41:14]}
{[%emt 00:00:06]} 3. Bc4 {[%clk 01:41:16]} {[%emt 00:00:29]} Nf6 {[%clk
01:41:32]} {[%emt 00:00:11]} 4. d3 {[%clk 01:41:36]} {[%emt 00:00:11]} Bc5
{[%clk 01:41:56]} {[%emt 00:00:06]} 5. c3 {[%clk 01:40:26]} {[%emt 00:01:40]}
d6 {[%clk 01:41:39]} {[%emt 00:00:47]} 6. O-O {[%clk 01:40:37]} {[%emt
00:00:19]} a5 {[%clk 01:41:24]} {[%emt 00:00:46]} 7. Re1 {[%clk 01:40:28]}
{[%emt 00:00:39]} O-O {[%clk 01:40:53]} {[%emt 00:01:01]} 8. h3 {[%clk
01:40:32]} {[%emt 00:00:27]} Be6 {[%clk 01:40:18]} {[%emt 00:01:04]} 9. Bb5
{[%clk 01:40:09]} {[%emt 00:00:53]} Ba7 {[%clk 01:40:22]} {[%emt 00:00:26]} 10.
Be3 {[%clk 01:39:36]} {[%emt 00:01:03]} Bxe3 {[%clk 01:40:24]} {[%emt
00:00:29]} 11. Rxe3 {[%clk 01:39:58]} {[%emt 00:00:07]} Ne7 {[%clk 01:40:28]}
{[%emt 00:00:25]} 12. d4 {[%clk 01:37:28]} {[%emt 00:03:01]} Ng6 {[%clk
01:39:47]} {[%emt 00:01:11]} 13. Bf1 {[%clk 01:32:51]} {[%emt 00:05:07]} h5
{[%clk 01:39:16]} {[%emt 00:01:00]} 14. c4 {[%clk 01:26:06]} {[%emt 00:07:16]}
Nh7 {[%clk 01:39:27]} {[%emt 00:00:19]} 15. Nc3 {[%clk 01:22:02]} {[%emt
00:04:34]} Ng5 {[%clk 01:38:00]} {[%emt 00:01:57]} 16. d5 {[%clk 01:13:29]}
{[%emt 00:09:03]} Bd7 {[%clk 01:36:43]} {[%emt 00:01:47]} 17. Nxg5 {[%clk
01:11:53]} {[%emt 00:02:06]} Qxg5 {[%clk 01:36:57]} {[%emt 00:00:16]} 18. Nb5
{[%clk 01:12:04]} {[%emt 00:00:20]} Rac8 {[%clk 01:27:30]} {[%emt 00:09:56]} 19.
Na7 {[%clk 01:10:23]} {[%emt 00:02:11]} Ra8 {[%clk 01:26:57]} {[%emt 00:01:03]}
20. Nb5 {[%clk 01:10:45]} {[%emt 00:00:08]} Rac8 {[%clk 01:27:21]} {[%emt
00:00:06]} 21. Na7 {[%clk 01:11:05]} {[%emt 00:00:10]} Ra8 {[%clk 01:17:38]}
{[%emt 00:10:13]} 22. Nb5 {[%clk 01:11:10]} {[%emt 00:00:25]} 1/2-1/2